{"text_format":"1","workbook":"xlsx","n_sheets":5,"sheets":["Ülesanded","Uudised","uus_leht","Kaader","Abi"],"not_rendered":{"charts":0,"images":0,"macros":1,"external_links":1,"defined_names":18,"comments":0,"pivot_tables":0},"unopened":[],"bounds":{"document_bytes":16777216,"sheet_cells":100000,"rows_first":2000,"rows_last":500,"rows_between":2000,"halvings":0,"cell_chars":16384,"cell_head_chars":4096},"cells_cut":0,"cells_raw":0,"read":"whole","date_system":"1900"}

{"sheet":"Ülesanded","index":0,"n_rows":0,"n_cols":0,"rows_kept":0,"cut":false,"hidden":false,"merged":[]}

{"sheet":"Uudised","index":1,"n_rows":119,"n_cols":5,"rows_kept":119,"cut":false,"hidden":false,"merged":[]}
["Aeg","Uudis",null,null,"2024-10-16"]
["23:42:00","Selver x TalTech pääses CEV-i karikasarjas edasi"]
["23:07:00","Terras: Ungaris vaikselt mureneb ja ühel päeval leitakse demokraatlik lahendus"]
["23:06:00","Tallinnast on saamas Euroopa spordipealinn"]
["22:39:00","Tartu alustas eurosarja kolm-null võiduga"]
["21:54:00","ETV spordisaade, 16. oktoober"]
["21:53:00","Ilm püsib päikeseline, tuul tõuseb"]
["21:51:00","Aktuaalne kaamera kell 21:00"]
["21:40:00","Viipekeelsed uudised"]
["21:27:00","Aiandusagronoom soovitab aiast lehed kindlasti ära koristada"]
["21:18:00","Opositsiooni hinnangul on riigieelarve läbipaistmatu"]
["21:11:00","Pärnu Sadam ei võitnud eurosarjas ka esimest kodumängu"]
["21:11:00","ERR Ukrainas: kodumaa eest võitlevad meeste kõrval ka naised"]
["20:55:00","\"Pealtnägija\": doktor Noormann 40 aastat hiljem"]
["20:38:00","Õhkrelvast kuuli pähe saanud mehe juhtumi uurimine on tupikus"]
["20:29:00","Amazon ostab osaluse tuumaenergeetikat arendavas firmas X-energy"]
["20:14:00","Aktuaalne kaamera kell 18:30"]
["20:11:00","Kalev/Cramo sai eurosarjas suure võõrsilvõidu"]
["20:05:00","Vaiko Eplik: Betti Alver oli geenius"]
["19:51:00","Dorothea Wierer jätkamisest: see polnud lihtne otsus"]
["19:35:00","\"Ringvaate\" stuudiosse jõudis Eesti kõige kallim elava kunstniku maal"]
["19:33:00","Rutte: NATO kaitseministrid arutavad Zelenski võiduplaani sel nädalal"]
["19:06:00","Prokuratuur näeb välismaalastest kurjategijate varem vabastamises probleeme"]
["19:05:00","Hollase ja Remmelga eliitturniiri debüüt lõppes kaotusega"]
["18:54:00","Briti valitsus kavatseb kaalulangetusravimi toel tõsta tööhõivet"]
["18:50:00","Skulptor Allmägi ja maalikunstnik Piile avasid Tartu Kunstimajas ühisnäituse \"Sümbioos\""]
["18:49:00","ERSO \"Romantika\" kontserdisarja avab Peeter Vähi teose \"Blue Collage\" esmaettekanne"]
["18:47:00","Prantsusmaal tulevad jääle Eesti iluuisutipud"]
["18:44:00","Eesti saatkond avas Washingtonis ettevõtluskeskuse"]
["18:40:00","Päevakaja (16.10.2024 18:00:00)"]
["18:40:00","Ekspertide hinnangul ei taha Põhja-Korea palju sõdureid Venemaa eest sõtta saata"]
["18:40:00","Nordica peab leidma lahenduse tööta lennukite probleemile"]
["18:20:00","Aktuaalne kaamera kell 17:00"]
["18:13:00","Gerardo's Toys/Neemeco liikus kindla võiduga veerandfinaali"]
["17:33:00","Malõgina sai aasta ühe magusama võidu"]
["17:15:00","\"Kultuuristuudio. Arutelu\" küsib, kuidas jagada raha teatrite vahel õiglaselt"]
["17:00:00","NHL-is nähti väravavahi tabamust"]
["16:57:00","Kohus tegi Lemberi ja PRIA vaidluses vaheotsuse"]
["16:52:00","Apollo võtab üle Eesti viimase Forum Cinemas kino Viljandis"]
["16:48:00","Kapo: sideandmete pikale säilitamisele head alternatiivi pole"]
["16:48:00","Eesti Naislaulu Seltsi esinaine: kummutame müüti, et naislaul on vaid \"kiremine\""]
["16:35:00","Eesti treener juhendas Soome noortekoondise suurturniiri lävele"]
["16:27:00","EL-i riigid võivad rändepoliitika karmistamisel pöörata pilgu Assadi poole"]
["16:17:00","\"Pealtnägija\": kolm investeerimispettuse ohvrit räägivad oma loo"]
["16:15:00","Eesti sangpommisportlased korjasid MM-il kamaluga medaleid"]
["15:57:00","Riigikogu tunnistas krimmitatarlaste suurküüditamise genotsiidiks"]
["15:35:00","Eesti teine reket lõpetas pika kaotusteseeria"]
["15:30:00","Mitmed väliskapitalile kuuluvad kaubanduskeskused pannakse müüki"]
["15:30:00","Eesti toetab Euroopa Liidu rändereeglite karmistamist"]
["15:30:00","Ida-Virumaal hakatakse uurima keemiatööstuse mõju elanike tervisele"]
["15:25:00","Kapo peab sideandmetega tutvumise võimalust oluliseks"]
["15:20:00","Raadiouudised (16.10.2024 15:00:00)"]
["15:03:00","Uue telemaja ehitushankele tegi parima pakkumuse Nordecon AS"]
["14:56:00","USA future jazz kollektiiv Sungazer esineb taas Tallinnas"]
["14:56:00","Zelenski avaldas viiest punktist koosneva võiduplaani"]
["14:55:00","Tarmo Tamm hakkab üleminekufondist saadud toetuse abil puidutööstust rajama"]
["14:49:00","Mehhiko sai üle viie aasta taas USA-st jagu, Pochettino palub kannatust"]
["14:45:00","Kell 21.40 \"Esimeses stuudios\" Brüsseli debatt"]
["14:30:00","CNN: Iisraelil valmis plaan Iraani rünnakule vastamiseks"]
["14:25:00","Oliver Laas: asjad, seadmed ja nende parandamine"]
["14:25:00","Taaramäe lõpetas Hiinas ka teise etapi peagrupis"]
["14:20:00","Musk andis Trumpi kampaaniale 75 miljonit dollarit"]
["14:19:00","Kõige olulisem infoallikas on Eesti uudisteportaalid"]
["14:19:00","Usaldus riigikogu ja valitsuse vastu langes oluliselt"]
["14:05:00","Ilm püsib selge, öösel muutuvad teed libedaks"]
["13:55:00","Holstre saab pärimuste matkaraja"]
["13:55:00","Rootsi tõstab kaitsekulusid 2,6 protsenti SKT-st"]
["13:54:00","Andra Teede: \"Õnne 13\" Alma ja Laine ei vanane mitte kunagi"]
["13:47:00","Koduse korvpalliliiga tulevikutäht on ilmselt liitumas Kalev/Cramoga"]
["13:40:00","Zuga tantsijate uuslavastus \"Ilma\" kutsub üles positiivsele aktivismile"]
["13:33:00","Helikunsti- ja muusikafestival Üle Heli seob tänavu kokku heli ja kujutluse"]
["13:13:00","Eva Sepping filmist \"Rändajad\": tahtsin näidata elu Siberis võimalikultilusana"]
["13:09:00","Noored Eesti ratturid liituvad värskelt loodud Belgia tiimiga"]
["12:53:00","Akkermann: mõne ministeeriumi kärped on eelarves veel sisustamata"]
["12:47:00","Eesti parim naiste rannavolleduo teeb debüüdi kõrgeima taseme turniiril"]
["12:33:00","Hasso Krull: poliitikutel on võimalus midagi tegemata jätta, siis ei peaka hiljem kahetsema"]
["12:26:00","Arst: viirushooaeg on alanud, haigestumine kogub hoogu"]
["12:25:00","Raadiouudised (16.10.2024 12:00:00)"]
["12:18:00","Põlva Serviti alustab nädalavahetusel Hollandis eurohooaega"]
["12:08:00","Õpetaja läbipõlemisest: oma murega ei tohi jääda üksi"]
["12:04:00","Hiiumaa vald taotleb Suuremõisa lossi võõrandamist"]
["12:04:00","Ilm on täna päikeseline"]
["12:04:00","Sidefirmad ähvardavad üle vaadata sideandmete säilitamise tähtajad"]
["12:04:00","Raadiouudised (16.10.2024 09:00:00)"]
["11:51:00","Selgus tiitlikaitsja Eesti koosseis naiste Balti turniiriks"]
["11:38:00","Ka kiirelt kasvavad kuused võivad anda head ehituspuitu"]
["11:37:00","Deodorant pakub õhusaastes sudule konkurentsi"]
["11:28:00","Rahvusvaheline Energiaagentuur: maailm on elektriajastu lävel"]
["11:16:00","Eesti kurlingu segavõistkond alistas MM-il Austria esinduse"]
["11:06:00","Kaisa Selde: olen tajunud küll emaks saamise survet"]
["10:50:00","Kolmekäeline robotdirigent tegi inimestele tuule alla"]
["10:43:00","37-aastane Colombia rattalegend tahab saada jalgpalluriks"]
["10:38:00","Hõimupäevadel tuulutatakse muusika- ja teatriakadeemias Soome rahvarõivaid"]
["10:37:00","Retseptiravimite miinimumhind tõuseb tuleval aastal euro võrra"]
["10:21:00","PÖFF-il jõuab esmakordselt Eesti vaatajate ette Anna Hintsi lühifilm \"Pimeala\""]
["09:59:00","Inglismaa jalgpallikoondist hakkab esimest korda juhendama sakslane"]
["09:49:00","ERR-i teleuudised kell 9:00"]
["09:47:00","Andrus Kaarelson: kuhu \"julgeolekumaksu\" raha tegelikult läheb"]
["09:38:00","FT: EL ei loobu 2035. aastaks seatud bensiinimootoriga uute autode müügikeelust"]
["09:32:00","Kindel võit viis Hispaania Rahvuste liigas kaheksa parema sekka"]
["09:25:00","Gert Raudsep: me ei ole siin selleks, et tekki ainult enda peale tõmmata"]
["09:11:00","Tarmo Kurves: kogukonna toetuse kaudu tõuseb sotsiaalteenuste kvaliteet"]
["08:55:00","20/20 filmifestival võtab luubi alla draamat täis tummfilmid"]
["08:49:00","ERR-i teleuudised kell 7:00"]
["08:46:00","Messi säras valikmängus kübaratriki ja kahe väravasööduga"]
["08:33:00","Harris esitas majandusplaani mustanahaliste meeste toetuseks"]
["08:33:00","Eesti lasteraamatud valiti taas maailma parimate hulka"]
["08:14:00","Võrkpallikarikavõistlused algavad Võru klubide duelliga"]
["08:06:00","Sveta Grigorjeva: ma ei usu, et ma radikaalsust taga otsin"]
["07:49:00","Kantar Emor: Balti riikide elanikud eelistavad USA presidendina Harrist"]
["07:35:00","Australopiteekidel olid nüüdisinimlikud töömehekäed"]
["07:03:00","EL püüab tippkohtumisega veenda laheriike Venemaad isoleerima"]
["07:00:00","Otse kell 12: riigikogu infotunnis Läänemets, Hartman, Sikkut"]
["06:57:00","Riigieelarve eelnõu läbis riigikogus esimese lugemise"]
["06:44:00","Norstat: Keskerakond langes reitingutabelis neljandaks"]
["06:26:00","Hiiumaal kaalutakse Suuremõisa lossi munitsipaalomandisse taotlemist"]
["06:18:00","Läti on valdava osa piiritarast Venemaaga valmis saanud"]
["06:18:00","Ettevõtted: ärilistel eesmärkidel säilitaksime vähem sideandmeid"]
["05:46:00","Sõja 966. päev: Biden teatas uuest abipaketist Ukrainale"]

{"sheet":"uus_leht","index":2,"n_rows":21,"n_cols":4,"rows_kept":21,"cut":false,"hidden":false,"merged":[]}
[null,"Uudis",null,"Otsisõna"]
[null,{"$f":"\"*\"&Otsisõna&\"*\"","v":"*Eesti*"},null,"Eesti"]
[null,{"$f":"_xlfn.FORMULATEXT(B2)","v":"=\"*\"&Otsisõna&\"*\""}]
[]
[null,"Aeg","Uudis"]
[null,"19:35:00","\"Ringvaate\" stuudiosse jõudis Eesti kõige kallim elava kunstniku maal"]
[null,"18:47:00","Prantsusmaal tulevad jääle Eesti iluuisutipud"]
[null,"18:44:00","Eesti saatkond avas Washingtonis ettevõtluskeskuse"]
[null,"16:52:00","Apollo võtab üle Eesti viimase Forum Cinemas kino Viljandis"]
[null,"16:48:00","Eesti Naislaulu Seltsi esinaine: kummutame müüti, et naislaul on vaid \"kiremine\""]
[null,"16:35:00","Eesti treener juhendas Soome noortekoondise suurturniiri lävele"]
[null,"16:15:00","Eesti sangpommisportlased korjasid MM-il kamaluga medaleid"]
[null,"15:35:00","Eesti teine reket lõpetas pika kaotusteseeria"]
[null,"15:30:00","Eesti toetab Euroopa Liidu rändereeglite karmistamist"]
[null,"14:19:00","Kõige olulisem infoallikas on Eesti uudisteportaalid"]
[null,"13:09:00","Noored Eesti ratturid liituvad värskelt loodud Belgia tiimiga"]
[null,"12:47:00","Eesti parim naiste rannavolleduo teeb debüüdi kõrgeima taseme turniiril"]
[null,"11:51:00","Selgus tiitlikaitsja Eesti koosseis naiste Balti turniiriks"]
[null,"11:16:00","Eesti kurlingu segavõistkond alistas MM-il Austria esinduse"]
[null,"10:21:00","PÖFF-il jõuab esmakordselt Eesti vaatajate ette Anna Hintsi lühifilm \"Pimeala\""]
[null,"08:33:00","Eesti lasteraamatud valiti taas maailma parimate hulka"]

{"sheet":"Kaader","index":3,"n_rows":102,"n_cols":11,"rows_kept":102,"cut":false,"hidden":false,"merged":[]}
[null,null,null,null,null,null,null,null,null,null,"1. lisab vahesumma read, milles kuvatakse sünnipäevalaste arv kuude lõikes"]
[null,null,null,null,null,null,null,null,null,null,"2. lisab vahesumma read, milles kuvatakse keskmine palk ja keskmine vanus osakondade lõikes"]
[null,"Nimi","Sugu","Sünniaeg","Osakond","Amet","Palk","Kuu","Vanus",null,"3. taastab esialgse andmetabeli seisu."]
[null,"Faina Lepp","naine","1982-04-01","Finants","jurist",2300,{"$f":"INDEX(Kuud,MONTH(Sünniaeg))","v":"Aprill"},{"$f":"INT((TODAY()-Sünniaeg)/365.25)","v":42}]
[null,"Ene Burmeister","naine","1982-08-21","Finants","raamatupidaja",1260,{"$f":"INDEX(Kuud,MONTH(Sünniaeg))","v":"August"},{"$f":"INT((TODAY()-Sünniaeg)/365.25)","v":42}]
[null,"Jaan Laubre","mees","1988-01-16","Finants","raamatupidaja",1450,{"$f":"INDEX(Kuud,MONTH(Sünniaeg))","v":"Jaanuar"},{"$f":"INT((TODAY()-Sünniaeg)/365.25)","v":36}]
[null,"Evi Sarapik","naine","1958-01-06","Finants","raamatupidaja",1200,{"$f":"INDEX(Kuud,MONTH(Sünniaeg))","v":"Jaanuar"},{"$f":"INT((TODAY()-Sünniaeg)/365.25)","v":66}]
[null,"Kristel Astok","naine","1969-05-09","Finants","raamatupidaja",1400,{"$f":"INDEX(Kuud,MONTH(Sünniaeg))","v":"Mai"},{"$f":"INT((TODAY()-Sünniaeg)/365.25)","v":55}]
[null,"Vilma Eesmaa","naine","1985-05-28","Finants","raamatupidaja",1370,{"$f":"INDEX(Kuud,MONTH(Sünniaeg))","v":"Mai"},{"$f":"INT((TODAY()-Sünniaeg)/365.25)","v":39}]
[null,"Malle Ligi","naine","1967-10-03","Finants","jurist",2240,{"$f":"INDEX(Kuud,MONTH(Sünniaeg))","v":"Oktoober"},{"$f":"INT((TODAY()-Sünniaeg)/365.25)","v":57}]
[null,"Katy Veesimaa","naine","1975-10-17","Finants","referent",1000,{"$f":"INDEX(Kuud,MONTH(Sünniaeg))","v":"Oktoober"},{"$f":"INT((TODAY()-Sünniaeg)/365.25)","v":49}]
[null,"Malle Kivioja","naine","1981-02-03","Finants","juhataja",3000,{"$f":"INDEX(Kuud,MONTH(Sünniaeg))","v":"Veebruar"},{"$f":"INT((TODAY()-Sünniaeg)/365.25)","v":43}]
[null,"Karl Salu","mees","1960-04-19","Ladu","dispetser",1010,{"$f":"INDEX(Kuud,MONTH(Sünniaeg))","v":"Aprill"},{"$f":"INT((TODAY()-Sünniaeg)/365.25)","v":64}]
[null,"Airi Põld","naine","1969-04-10","Ladu","komplekteerija",1220,{"$f":"INDEX(Kuud,MONTH(Sünniaeg))","v":"Aprill"},{"$f":"INT((TODAY()-Sünniaeg)/365.25)","v":55}]
[null,"Reijo Meigas","mees","1956-12-18","Ladu","tööline",1090,{"$f":"INDEX(Kuud,MONTH(Sünniaeg))","v":"Detsember"},{"$f":"INT((TODAY()-Sünniaeg)/365.25)","v":67}]
[null,"Tiina Markus","naine","1992-07-01","Ladu","tööline",950,{"$f":"INDEX(Kuud,MONTH(Sünniaeg))","v":"Juuli"},{"$f":"INT((TODAY()-Sünniaeg)/365.25)","v":32}]
[null,"Selma Parre","naine","1979-03-20","Ladu","tööline",1160,{"$f":"INDEX(Kuud,MONTH(Sünniaeg))","v":"Märts"},{"$f":"INT((TODAY()-Sünniaeg)/365.25)","v":45}]
[null,"Meelis Kalju","mees","1992-11-16","Ladu","tööline",1110,{"$f":"INDEX(Kuud,MONTH(Sünniaeg))","v":"November"},{"$f":"INT((TODAY()-Sünniaeg)/365.25)","v":31}]
[null,"Kaivo Berk","mees","1955-10-19","Ladu","tööline",1060,{"$f":"INDEX(Kuud,MONTH(Sünniaeg))","v":"Oktoober"},{"$f":"INT((TODAY()-Sünniaeg)/365.25)","v":69}]
[null,"Erki Arsenov","mees","1959-02-12","Ladu","komplekteerija",1240,{"$f":"INDEX(Kuud,MONTH(Sünniaeg))","v":"Veebruar"},{"$f":"INT((TODAY()-Sünniaeg)/365.25)","v":65}]
[null,"Einar Laanepõld","mees","1972-02-12","Ladu","tööline",1100,{"$f":"INDEX(Kuud,MONTH(Sünniaeg))","v":"Veebruar"},{"$f":"INT((TODAY()-Sünniaeg)/365.25)","v":52}]
[null,"Anton Meister","mees","1955-02-08","Ladu","juhataja",1960,{"$f":"INDEX(Kuud,MONTH(Sünniaeg))","v":"Veebruar"},{"$f":"INT((TODAY()-Sünniaeg)/365.25)","v":69}]
[null,"Mare Eesmaa","naine","1984-08-16","Majandus","juhataja",2290,{"$f":"INDEX(Kuud,MONTH(Sünniaeg))","v":"August"},{"$f":"INT((TODAY()-Sünniaeg)/365.25)","v":40}]
[null,"Evelin Põld","naine","1970-08-21","Majandus","sekretär",1090,{"$f":"INDEX(Kuud,MONTH(Sünniaeg))","v":"August"},{"$f":"INT((TODAY()-Sünniaeg)/365.25)","v":54}]
[null,"Tiina Toomsalu","naine","1957-07-22","Majandus","koristaja",780,{"$f":"INDEX(Kuud,MONTH(Sünniaeg))","v":"Juuli"},{"$f":"INT((TODAY()-Sünniaeg)/365.25)","v":67}]
[null,"Aasa Randla","naine","1952-06-15","Majandus","koristaja",930,{"$f":"INDEX(Kuud,MONTH(Sünniaeg))","v":"Juuni"},{"$f":"INT((TODAY()-Sünniaeg)/365.25)","v":72}]
[null,"Laine Eek","naine","1993-03-11","Majandus","sekretär",1110,{"$f":"INDEX(Kuud,MONTH(Sünniaeg))","v":"Märts"},{"$f":"INT((TODAY()-Sünniaeg)/365.25)","v":31}]
[null,"Annika Paju","naine","1991-03-18","Majandus","sekretär",960,{"$f":"INDEX(Kuud,MONTH(Sünniaeg))","v":"Märts"},{"$f":"INT((TODAY()-Sünniaeg)/365.25)","v":33}]
[null,"Mirja Bergmann","naine","1953-09-11","Majandus","koristaja",850,{"$f":"INDEX(Kuud,MONTH(Sünniaeg))","v":"September"},{"$f":"INT((TODAY()-Sünniaeg)/365.25)","v":71}]
[null,"Kristjan Mägi","mees","1989-04-16","Müük","diiler",1180,{"$f":"INDEX(Kuud,MONTH(Sünniaeg))","v":"Aprill"},{"$f":"INT((TODAY()-Sünniaeg)/365.25)","v":35}]
[null,"Reijo Okspuu","mees","1992-04-15","Müük","diiler",1100,{"$f":"INDEX(Kuud,MONTH(Sünniaeg))","v":"Aprill"},{"$f":"INT((TODAY()-Sünniaeg)/365.25)","v":32}]
[null,"Erika Bachmann","naine","1983-04-07","Müük","müügijuht",1450,{"$f":"INDEX(Kuud,MONTH(Sünniaeg))","v":"Aprill"},{"$f":"INT((TODAY()-Sünniaeg)/365.25)","v":41}]
[null,"Ene Elmik","naine","1983-04-24","Müük","müügijuht",1450,{"$f":"INDEX(Kuud,MONTH(Sünniaeg))","v":"Aprill"},{"$f":"INT((TODAY()-Sünniaeg)/365.25)","v":41}]
[null,"Faina Kukk","naine","1992-08-29","Müük","sekretär",1180,{"$f":"INDEX(Kuud,MONTH(Sünniaeg))","v":"August"},{"$f":"INT((TODAY()-Sünniaeg)/365.25)","v":32}]
[null,"Erno Salumets","mees","1981-12-17","Müük","juhataja",2780,{"$f":"INDEX(Kuud,MONTH(Sünniaeg))","v":"Detsember"},{"$f":"INT((TODAY()-Sünniaeg)/365.25)","v":42}]
[null,"Jaan Noormets","mees","1993-01-07","Müük","diiler",1220,{"$f":"INDEX(Kuud,MONTH(Sünniaeg))","v":"Jaanuar"},{"$f":"INT((TODAY()-Sünniaeg)/365.25)","v":31}]
[null,"Tarmo Müller","mees","1979-03-05","Müük","müügijuht",1390,{"$f":"INDEX(Kuud,MONTH(Sünniaeg))","v":"Märts"},{"$f":"INT((TODAY()-Sünniaeg)/365.25)","v":45}]
[null,"Aare Raudsepp","mees","1991-03-01","Müük","diiler",1150,{"$f":"INDEX(Kuud,MONTH(Sünniaeg))","v":"Märts"},{"$f":"INT((TODAY()-Sünniaeg)/365.25)","v":33}]
[null,"Helen Aigro","naine","1997-03-03","Müük","sekretär",1120,{"$f":"INDEX(Kuud,MONTH(Sünniaeg))","v":"Märts"},{"$f":"INT((TODAY()-Sünniaeg)/365.25)","v":27}]
[null,"Jana Kaal","naine","1980-03-18","Müük","sekretär",1170,{"$f":"INDEX(Kuud,MONTH(Sünniaeg))","v":"Märts"},{"$f":"INT((TODAY()-Sünniaeg)/365.25)","v":44}]
[null,"Juulia Tubin","naine","1964-03-02","Müük","sekretär",920,{"$f":"INDEX(Kuud,MONTH(Sünniaeg))","v":"Märts"},{"$f":"INT((TODAY()-Sünniaeg)/365.25)","v":60}]
[null,"Erika Kasemets","naine","1997-11-26","Müük","sekretär",1250,{"$f":"INDEX(Kuud,MONTH(Sünniaeg))","v":"November"},{"$f":"INT((TODAY()-Sünniaeg)/365.25)","v":26}]
[null,"Hilja Raid","naine","1987-11-03","Müük","sekretär",1090,{"$f":"INDEX(Kuud,MONTH(Sünniaeg))","v":"November"},{"$f":"INT((TODAY()-Sünniaeg)/365.25)","v":36}]
[null,"Sirje Härm","naine","1955-05-14","Ost","sekretär",1170,{"$f":"INDEX(Kuud,MONTH(Sünniaeg))","v":"Mai"},{"$f":"INT((TODAY()-Sünniaeg)/365.25)","v":69}]
[null,"Aigi Härm","naine","1980-03-22","Ost","sekretär",1320,{"$f":"INDEX(Kuud,MONTH(Sünniaeg))","v":"Märts"},{"$f":"INT((TODAY()-Sünniaeg)/365.25)","v":44}]
[null,"Maarja Ambros","naine","1977-11-13","Ost","sekretär",1500,{"$f":"INDEX(Kuud,MONTH(Sünniaeg))","v":"November"},{"$f":"INT((TODAY()-Sünniaeg)/365.25)","v":46}]
[null,"Aarne Mikson","mees","1984-09-01","Ost","juhataja",2420,{"$f":"INDEX(Kuud,MONTH(Sünniaeg))","v":"September"},{"$f":"INT((TODAY()-Sünniaeg)/365.25)","v":40}]
[null,"Valve Mäesalu","naine","1970-09-01","Ost","sekretär",1200,{"$f":"INDEX(Kuud,MONTH(Sünniaeg))","v":"September"},{"$f":"INT((TODAY()-Sünniaeg)/365.25)","v":54}]
[null,"Einar Ehala","mees","1954-04-24","Tootmine","treial",1280,{"$f":"INDEX(Kuud,MONTH(Sünniaeg))","v":"Aprill"},{"$f":"INT((TODAY()-Sünniaeg)/365.25)","v":70}]
[null,"Aadu Elson","mees","1973-04-09","Tootmine","tööline",1350,{"$f":"INDEX(Kuud,MONTH(Sünniaeg))","v":"Aprill"},{"$f":"INT((TODAY()-Sünniaeg)/365.25)","v":51}]
[null,"Marko Erikson","mees","1953-04-06","Tootmine","meister",1520,{"$f":"INDEX(Kuud,MONTH(Sünniaeg))","v":"Aprill"},{"$f":"INT((TODAY()-Sünniaeg)/365.25)","v":71}]
[null,"Kristjan Jürimäe","mees","1981-08-04","Tootmine","lukksepp",1450,{"$f":"INDEX(Kuud,MONTH(Sünniaeg))","v":"August"},{"$f":"INT((TODAY()-Sünniaeg)/365.25)","v":43}]
[null,"Karl Agur","mees","1994-12-21","Tootmine","tööline",1420,{"$f":"INDEX(Kuud,MONTH(Sünniaeg))","v":"Detsember"},{"$f":"INT((TODAY()-Sünniaeg)/365.25)","v":29}]
[null,"Aarne Norak","mees","1975-12-07","Tootmine","tööline",1070,{"$f":"INDEX(Kuud,MONTH(Sünniaeg))","v":"Detsember"},{"$f":"INT((TODAY()-Sünniaeg)/365.25)","v":48}]
[null,"Sirje Kreen","naine","1955-12-27","Tootmine","tööline",1575,{"$f":"INDEX(Kuud,MONTH(Sünniaeg))","v":"Detsember"},{"$f":"INT((TODAY()-Sünniaeg)/365.25)","v":68}]
[null,"Leida Jaanus","naine","1955-01-15","Tootmine","tööline",1240,{"$f":"INDEX(Kuud,MONTH(Sünniaeg))","v":"Jaanuar"},{"$f":"INT((TODAY()-Sünniaeg)/365.25)","v":69}]
[null,"Malle Põldmaa","naine","1975-01-06","Tootmine","tööline",1100,{"$f":"INDEX(Kuud,MONTH(Sünniaeg))","v":"Jaanuar"},{"$f":"INT((TODAY()-Sünniaeg)/365.25)","v":49}]
[null,"Ahti Tubin","mees","1970-07-06","Tootmine","treial",1250,{"$f":"INDEX(Kuud,MONTH(Sünniaeg))","v":"Juuli"},{"$f":"INT((TODAY()-Sünniaeg)/365.25)","v":54}]
[null,"Kersti Miller","naine","1991-07-23","Tootmine","tööline",1020,{"$f":"INDEX(Kuud,MONTH(Sünniaeg))","v":"Juuli"},{"$f":"INT((TODAY()-Sünniaeg)/365.25)","v":33}]
[null,"Arnold Norak","mees","1990-06-29","Tootmine","tööline",1160,{"$f":"INDEX(Kuud,MONTH(Sünniaeg))","v":"Juuni"},{"$f":"INT((TODAY()-Sünniaeg)/365.25)","v":34}]
[null,"Eevald Parts","mees","1988-06-17","Tootmine","lukksepp",1310,{"$f":"INDEX(Kuud,MONTH(Sünniaeg))","v":"Juuni"},{"$f":"INT((TODAY()-Sünniaeg)/365.25)","v":36}]
[null,"Kaspar Veesimaa","mees","1965-06-11","Tootmine","tööline",930,{"$f":"INDEX(Kuud,MONTH(Sünniaeg))","v":"Juuni"},{"$f":"INT((TODAY()-Sünniaeg)/365.25)","v":59}]
[null,"Argo Salu","mees","1960-05-29","Tootmine","tööline",1120,{"$f":"INDEX(Kuud,MONTH(Sünniaeg))","v":"Mai"},{"$f":"INT((TODAY()-Sünniaeg)/365.25)","v":64}]
[null,"Erna Eek","naine","1990-05-24","Tootmine","tööline",1150,{"$f":"INDEX(Kuud,MONTH(Sünniaeg))","v":"Mai"},{"$f":"INT((TODAY()-Sünniaeg)/365.25)","v":34}]
[null,"Aadu Heinlo","mees","1992-03-27","Tootmine","lukksepp",1170,{"$f":"INDEX(Kuud,MONTH(Sünniaeg))","v":"Märts"},{"$f":"INT((TODAY()-Sünniaeg)/365.25)","v":32}]
[null,"Andrus Koort","mees","1972-03-05","Tootmine","treial",1370,{"$f":"INDEX(Kuud,MONTH(Sünniaeg))","v":"Märts"},{"$f":"INT((TODAY()-Sünniaeg)/365.25)","v":52}]
[null,"Margus Maasalu","mees","1962-03-04","Tootmine","tööline",1310,{"$f":"INDEX(Kuud,MONTH(Sünniaeg))","v":"Märts"},{"$f":"INT((TODAY()-Sünniaeg)/365.25)","v":62}]
[null,"Madis Maasalu","mees","1955-03-11","Tootmine","tööline",1320,{"$f":"INDEX(Kuud,MONTH(Sünniaeg))","v":"Märts"},{"$f":"INT((TODAY()-Sünniaeg)/365.25)","v":69}]
[null,"Hanno Pajusaar","mees","1990-03-27","Tootmine","tööline",1210,{"$f":"INDEX(Kuud,MONTH(Sünniaeg))","v":"Märts"},{"$f":"INT((TODAY()-Sünniaeg)/365.25)","v":34}]
[null,"Erki Ainsaar","mees","1975-11-12","Tootmine","lukksepp",1200,{"$f":"INDEX(Kuud,MONTH(Sünniaeg))","v":"November"},{"$f":"INT((TODAY()-Sünniaeg)/365.25)","v":48}]
[null,"Raivo Lokk","mees","1991-11-15","Tootmine","tööline",1250,{"$f":"INDEX(Kuud,MONTH(Sünniaeg))","v":"November"},{"$f":"INT((TODAY()-Sünniaeg)/365.25)","v":32}]
[null,"Eino Luige","mees","1962-11-16","Tootmine","tööline",970,{"$f":"INDEX(Kuud,MONTH(Sünniaeg))","v":"November"},{"$f":"INT((TODAY()-Sünniaeg)/365.25)","v":61}]
[null,"Kustav Salu","mees","1982-11-20","Tootmine","tööline",1120,{"$f":"INDEX(Kuud,MONTH(Sünniaeg))","v":"November"},{"$f":"INT((TODAY()-Sünniaeg)/365.25)","v":41}]
[null,"Heli Lind","naine","1981-11-11","Tootmine","tööline",1100,{"$f":"INDEX(Kuud,MONTH(Sünniaeg))","v":"November"},{"$f":"INT((TODAY()-Sünniaeg)/365.25)","v":42}]
[null,"Reijo Bauman","mees","1965-10-04","Tootmine","tööline",1250,{"$f":"INDEX(Kuud,MONTH(Sünniaeg))","v":"Oktoober"},{"$f":"INT((TODAY()-Sünniaeg)/365.25)","v":59}]
[null,"Olav Berk","mees","1950-10-04","Tootmine","tööline",1130,{"$f":"INDEX(Kuud,MONTH(Sünniaeg))","v":"Oktoober"},{"$f":"INT((TODAY()-Sünniaeg)/365.25)","v":74}]
[null,"Erki Lepiksoo","mees","1981-10-31","Tootmine","treial",1390,{"$f":"INDEX(Kuud,MONTH(Sünniaeg))","v":"Oktoober"},{"$f":"INT((TODAY()-Sünniaeg)/365.25)","v":42}]
[null,"Reijo Müürsepp","mees","1962-10-11","Tootmine","lukksepp",1220,{"$f":"INDEX(Kuud,MONTH(Sünniaeg))","v":"Oktoober"},{"$f":"INT((TODAY()-Sünniaeg)/365.25)","v":62}]
[null,"Arvi Väljas","mees","1976-10-05","Tootmine","tööline",930,{"$f":"INDEX(Kuud,MONTH(Sünniaeg))","v":"Oktoober"},{"$f":"INT((TODAY()-Sünniaeg)/365.25)","v":48}]
[null,"Hendrik Kanter","mees","1954-09-01","Tootmine","juhataja",2200,{"$f":"INDEX(Kuud,MONTH(Sünniaeg))","v":"September"},{"$f":"INT((TODAY()-Sünniaeg)/365.25)","v":70}]
[null,"Riho Kuusk","mees","1952-09-14","Tootmine","tööline",1290,{"$f":"INDEX(Kuud,MONTH(Sünniaeg))","v":"September"},{"$f":"INT((TODAY()-Sünniaeg)/365.25)","v":72}]
[null,"Aare Marmor","mees","1957-09-23","Tootmine","meister",1400,{"$f":"INDEX(Kuud,MONTH(Sünniaeg))","v":"September"},{"$f":"INT((TODAY()-Sünniaeg)/365.25)","v":67}]
[null,"Kaivo Mets","mees","1973-09-01","Tootmine","meister",1370,{"$f":"INDEX(Kuud,MONTH(Sünniaeg))","v":"September"},{"$f":"INT((TODAY()-Sünniaeg)/365.25)","v":51}]
[null,"Reijo Muld","mees","1981-09-24","Tootmine","tööline",1240,{"$f":"INDEX(Kuud,MONTH(Sünniaeg))","v":"September"},{"$f":"INT((TODAY()-Sünniaeg)/365.25)","v":43}]
[null,"Meelis Petrov","mees","1992-09-21","Tootmine","tööline",1020,{"$f":"INDEX(Kuud,MONTH(Sünniaeg))","v":"September"},{"$f":"INT((TODAY()-Sünniaeg)/365.25)","v":32}]
[null,"Madis Paulus","mees","1985-02-21","Tootmine","tööline",1200,{"$f":"INDEX(Kuud,MONTH(Sünniaeg))","v":"Veebruar"},{"$f":"INT((TODAY()-Sünniaeg)/365.25)","v":39}]
[null,"Irma Piirsalu","naine","1987-02-13","Tootmine","tööline",1150,{"$f":"INDEX(Kuud,MONTH(Sünniaeg))","v":"Veebruar"},{"$f":"INT((TODAY()-Sünniaeg)/365.25)","v":37}]
[null,"Elvi Berk","naine","1983-04-06","Transport","dispetser",1190,{"$f":"INDEX(Kuud,MONTH(Sünniaeg))","v":"Aprill"},{"$f":"INT((TODAY()-Sünniaeg)/365.25)","v":41}]
[null,"Ahto Danilov","mees","1979-08-25","Transport","autojuht",1460,{"$f":"INDEX(Kuud,MONTH(Sünniaeg))","v":"August"},{"$f":"INT((TODAY()-Sünniaeg)/365.25)","v":45}]
[null,"Priit Burmeister","mees","1992-12-16","Transport","autojuht",1320,{"$f":"INDEX(Kuud,MONTH(Sünniaeg))","v":"Detsember"},{"$f":"INT((TODAY()-Sünniaeg)/365.25)","v":31}]
[null,"Jaan Kaasik","mees","1960-12-20","Transport","autojuht",1330,{"$f":"INDEX(Kuud,MONTH(Sünniaeg))","v":"Detsember"},{"$f":"INT((TODAY()-Sünniaeg)/365.25)","v":63}]
[null,"Hanno Pedak","mees","1981-01-24","Transport","autojuht",1160,{"$f":"INDEX(Kuud,MONTH(Sünniaeg))","v":"Jaanuar"},{"$f":"INT((TODAY()-Sünniaeg)/365.25)","v":43}]
[null,"Aarne Oks","mees","1961-07-14","Transport","autojuht",1150,{"$f":"INDEX(Kuud,MONTH(Sünniaeg))","v":"Juuli"},{"$f":"INT((TODAY()-Sünniaeg)/365.25)","v":63}]
[null,"Paul Naaber","mees","1977-06-21","Transport","autojuht",1150,{"$f":"INDEX(Kuud,MONTH(Sünniaeg))","v":"Juuni"},{"$f":"INT((TODAY()-Sünniaeg)/365.25)","v":47}]
[null,"Margus Roosimägi","mees","1983-05-21","Transport","autojuht",1360,{"$f":"INDEX(Kuud,MONTH(Sünniaeg))","v":"Mai"},{"$f":"INT((TODAY()-Sünniaeg)/365.25)","v":41}]
[null,"Tiina Rajamäe","naine","1983-05-16","Transport","dispetser",1160,{"$f":"INDEX(Kuud,MONTH(Sünniaeg))","v":"Mai"},{"$f":"INT((TODAY()-Sünniaeg)/365.25)","v":41}]
[null,"Boris Küünemäe","mees","1987-03-13","Transport","autojuht",1250,{"$f":"INDEX(Kuud,MONTH(Sünniaeg))","v":"Märts"},{"$f":"INT((TODAY()-Sünniaeg)/365.25)","v":37}]
[null,"Aadu Malva","mees","1970-03-06","Transport","autojuht",1390,{"$f":"INDEX(Kuud,MONTH(Sünniaeg))","v":"Märts"},{"$f":"INT((TODAY()-Sünniaeg)/365.25)","v":54}]
[null,"Kristiina Oks","naine","1970-03-15","Transport","dispetser",1080,{"$f":"INDEX(Kuud,MONTH(Sünniaeg))","v":"Märts"},{"$f":"INT((TODAY()-Sünniaeg)/365.25)","v":54}]
[null,"Aadu Pulk","mees","1953-10-16","Transport","valvur",900,{"$f":"INDEX(Kuud,MONTH(Sünniaeg))","v":"Oktoober"},{"$f":"INT((TODAY()-Sünniaeg)/365.25)","v":71}]
[null,"Arnold Merilaid","mees","1966-02-22","Transport","autojuht",1080,{"$f":"INDEX(Kuud,MONTH(Sünniaeg))","v":"Veebruar"},{"$f":"INT((TODAY()-Sünniaeg)/365.25)","v":58}]
[null,"Ando Nõmmik","mees","1989-02-20","Transport","autojuht",1220,{"$f":"INDEX(Kuud,MONTH(Sünniaeg))","v":"Veebruar"},{"$f":"INT((TODAY()-Sünniaeg)/365.25)","v":35}]

{"sheet":"Abi","index":4,"n_rows":15,"n_cols":2,"rows_kept":15,"cut":false,"hidden":false,"merged":[]}
[]
[]
[null,"Kuud"]
[null,"Jaanuar"]
[null,"Veebruar"]
[null,"Märts"]
[null,"Aprill"]
[null,"Mai"]
[null,"Juuni"]
[null,"Juuli"]
[null,"August"]
[null,"September"]
[null,"Oktoober"]
[null,"November"]
[null,"Detsember"]